Document Date,Purchase Order No,Line Item No,Supplier ID,Supplier Name,Pro Class,Pro Class Description,Description of Goods (Purpose of expenditure look up),Service/Department   (SAP Hierarchy Position),Expense Area (cost centre desc),Net Order Value Over 5000.00 (line item value shown here),GL Code,Cost Centre/WBS
10/10/2019,ZAV668858,1,12402,VeryPC Ltd,270000,Information Communication Technology  ,Information and Communications Technology,Corporate and Support Services,IT AVA Non - SLA,"5,280.00",402001,13001
10/10/2019,ZAV668858,2,12402,VeryPC Ltd,270000,Information Communication Technology  ,Information and Communications Technology,Corporate and Support Services,IT AVA Non - SLA,616.00,402001,13001
10/10/2019,ZAV668858,3,12402,VeryPC Ltd,270000,Information Communication Technology  ,Information and Communications Technology,Corporate and Support Services,IT AVA Non - SLA,100.80,402001,13001
01/11/2019,ZAV669902,1,12402,VeryPC Ltd,270000,Information Communication Technology  ,Information and Communications Technology,Corporate and Support Services,IT AVA Non - SLA,"6,600.00",402001,13001
01/11/2019,ZAV669902,2,12402,VeryPC Ltd,270000,Information Communication Technology  ,Information and Communications Technology,Corporate and Support Services,IT AVA Non - SLA,770.00,402001,13001
12/11/2019,ZAV670408,1,1162,RM Education plc,210000,Furniture & Soft Furnishings  ,Furniture and Equipment,Corporate and Support Services,IT AVA Non - SLA,"8,788.26",400105,13001
12/11/2019,ZAV670408,2,1162,RM Education plc,210000,Furniture & Soft Furnishings  ,Furniture and Equipment,Corporate and Support Services,IT AVA Non - SLA,9.00,400105,13001
21/11/2019,ZAV670855,1,12351,Getech,181800,Environmental Services Technical Equipment ,Furniture and Equipment,Corporate and Support Services,IT AVA Non - SLA,"5,565.00",400110,13001
21/11/2019,ZAV670855,2,12351,Getech,181800,Environmental Services Technical Equipment ,Furniture and Equipment,Corporate and Support Services,IT AVA Non - SLA,525.00,400110,13001
21/11/2019,ZAV670855,3,12351,Getech,181800,Environmental Services Technical Equipment ,Furniture and Equipment,Corporate and Support Services,IT AVA Non - SLA,175.00,400110,13001
21/11/2019,ZAV670855,4,12351,Getech,181800,Environmental Services Technical Equipment ,Furniture and Equipment,Corporate and Support Services,IT AVA Non - SLA,595.00,400110,13001
21/11/2019,ZAV670855,5,12351,Getech,181800,Environmental Services Technical Equipment ,Furniture and Equipment,Corporate and Support Services,IT AVA Non - SLA,"1,295.00",400110,13001
29/11/2019,ZAV671306,1,35,CBC Computer Systems Ltd,270000,Information Communication Technology  ,Information and Communications Technology,Corporate and Support Services,IT AVA Non - SLA,"24,150.00",402001,13001
29/11/2019,ZAV671306,2,35,CBC Computer Systems Ltd,270000,Information Communication Technology  ,Information and Communications Technology,Corporate and Support Services,IT AVA Non - SLA,"1,820.00",402001,13001
04/12/2019,ZAV671492,1,12351,Getech,270000,Information Communication Technology  ,Information and Communications Technology,Corporate and Support Services,IT AVA Non - SLA,510.00,402001,13001
04/12/2019,ZAV671492,2,12351,Getech,270000,Information Communication Technology  ,Information and Communications Technology,Corporate and Support Services,IT AVA Non - SLA,"6,120.00",402001,13001
04/12/2019,ZAV671492,3,12351,Getech,270000,Information Communication Technology  ,Information and Communications Technology,Corporate and Support Services,IT AVA Non - SLA,450.00,402001,13001
04/12/2019,ZAV671492,4,12351,Getech,270000,Information Communication Technology  ,Information and Communications Technology,Corporate and Support Services,IT AVA Non - SLA,150.00,402001,13001
27/12/2019,ZAV672430,1,12351,Getech,270000,Information Communication Technology  ,Information and Communications Technology,Corporate and Support Services,IT AVA Non - SLA,"4,770.00",402001,13001
27/12/2019,ZAV672430,2,12351,Getech,270000,Information Communication Technology  ,Information and Communications Technology,Corporate and Support Services,IT AVA Non - SLA,450.00,402001,13001
27/12/2019,ZAV672430,3,12351,Getech,270000,Information Communication Technology  ,Information and Communications Technology,Corporate and Support Services,IT AVA Non - SLA,150.00,402001,13001
27/12/2019,ZAV672430,4,12351,Getech,270000,Information Communication Technology  ,Information and Communications Technology,Corporate and Support Services,IT AVA Non - SLA,510.00,402001,13001
27/12/2019,ZAV672430,5,12351,Getech,270000,Information Communication Technology  ,Information and Communications Technology,Corporate and Support Services,IT AVA Non - SLA,800.00,402001,13001
07/11/2019,ZES670185,1,7130,Vanix,270000,Information Communication Technology  ,Information and Communications Technology,Corporate and Support Services,IT Infrastructure,"8,728.08",402002,11324
11/11/2019,ZES670327,1,12746,Camworth Limited,270000,Information Communication Technology  ,Information and Communications Technology,Corporate and Support Services,IT Infrastructure,"11,007.66",402002,11324
11/11/2019,ZES670327,2,12746,Camworth Limited,270000,Information Communication Technology  ,Information and Communications Technology,Corporate and Support Services,IT Infrastructure,"2,473.98",402002,11324
11/11/2019,ZES670327,3,12746,Camworth Limited,270000,Information Communication Technology  ,Information and Communications Technology,Corporate and Support Services,IT Infrastructure,"3,271.44",402002,11324
11/11/2019,ZES670327,4,12746,Camworth Limited,270000,Information Communication Technology  ,Information and Communications Technology,Corporate and Support Services,IT Infrastructure,"1,672.94",402002,11324
11/11/2019,ZES670327,5,12746,Camworth Limited,270000,Information Communication Technology  ,Information and Communications Technology,Corporate and Support Services,IT Infrastructure,130.86,402002,11324
11/11/2019,ZES670327,6,12746,Camworth Limited,270000,Information Communication Technology  ,Information and Communications Technology,Corporate and Support Services,IT Infrastructure,12.00,402002,11324
28/11/2019,ZES671220,1,2398,Fibrelite (Northwest) Ltd,270000,Information Communication Technology  ,Information and Communications Technology,#N/A,#N/A,"5,125.00",402006,C.11504.013
11/12/2019,ZES671845,1,28,Bechtle Direct Ltd,270000,Information Communication Technology  ,Information and Communications Technology,Corporate and Support Services,IT School,"19,033.73",402001,11418
20/12/2019,ZES672274,1,2398,Fibrelite (Northwest) Ltd,270000,Information Communication Technology  ,Information and Communications Technology,#N/A,#N/A,"1,640.00",402001,C.11502.097
20/12/2019,ZES672274,2,2398,Fibrelite (Northwest) Ltd,270000,Information Communication Technology  ,Information and Communications Technology,#N/A,#N/A,"4,995.00",402001,C.11502.097
20/12/2019,ZES672295,1,13177,Trustmarque Solutions Ltd,270000,Information Communication Technology  ,Information and Communications Technology,Corporate and Support Services,IT Infrastructure,"11,529.21",402001,11324
20/12/2019,ZES672295,2,13177,Trustmarque Solutions Ltd,270000,Information Communication Technology  ,Information and Communications Technology,Corporate and Support Services,IT Infrastructure,"55,513.61",402001,11324
20/12/2019,ZES672299,1,7712,Caretower Ltd,270000,Information Communication Technology  ,Information and Communications Technology,Corporate and Support Services,IT Main,"2,000.00",402002,11073
20/12/2019,ZES672299,2,7712,Caretower Ltd,270000,Information Communication Technology  ,Information and Communications Technology,Corporate and Support Services,IT Main,"3,000.00",402002,11073
23/12/2019,ZES672332,1,2927,XMA Ltd,270000,Information Communication Technology  ,Information and Communications Technology,Corporate and Support Services,IT Infrastructure,"8,903.29",402001,11324
21/11/2019,ZFC670882,1,1799,Stockport Homes,202000,Financial Services Rents ,Rents,Services to Place,SPB Operational Est.,"37,583.14",200703,11662
17/12/2019,ZFC672079,1,588,H Jenkinson & Co Ltd,210000,Furniture & Soft Furnishings  ,Furniture and Equipment,#N/A,#N/A,"13,769.83",400100,C.11504.013
15/10/2019,ZHS669040,1,13541,PRP Architects LLP.,390000,"Works - Construction, Repair & Maintenance  ",Capital Expenditure - Works,#N/A,#N/A,"31,129.17",200304,C.10937.002
21/10/2019,ZHS669337,1,13769,WYG Group Limited,181800,Environmental Services Technical Equipment ,Furniture and Equipment,#N/A,#N/A,"7,785.00",400110,C.10945.002
06/11/2019,ZHS670153,1,13870,Stanbridge Interiors Limited,181800,Environmental Services Technical Equipment ,Furniture and Equipment,#N/A,#N/A,"9,950.00",400110,C.10937.002
13/12/2019,ZHS671959,1,13422,Solarcrown Commercial Ltd,390000,"Works - Construction, Repair & Maintenance  ",Repairs and Maintenance,#N/A,#N/A,"63,595.00",200127,C.11617.033
19/12/2019,ZHS672188,1,13541,PRP Architects LLP.,390000,"Works - Construction, Repair & Maintenance  ",Capital Expenditure - Works,#N/A,#N/A,"17,412.75",200304,C.10937.002
02/12/2019,ZPC671376,1,11021,The Laurus Trust (Cheadle Hulm,261400,Human Resources Temporary & Agency Staff ,Agency Staff,Services to People,Pendlebury PRU,"2,875.50",100290,10318
02/12/2019,ZPC671376,2,11021,The Laurus Trust (Cheadle Hulm,261400,Human Resources Temporary & Agency Staff ,Agency Staff,Services to People,Cedars PRU,"1,917.00",100290,10317
02/12/2019,ZPC671376,3,11021,The Laurus Trust (Cheadle Hulm,261400,Human Resources Temporary & Agency Staff ,Agency Staff,Services to People,Pendlebury PRU,"2,875.50",100290,10318
02/12/2019,ZPC671376,4,11021,The Laurus Trust (Cheadle Hulm,261400,Human Resources Temporary & Agency Staff ,Agency Staff,Services to People,Cedars PRU,"1,917.00",100290,10317
02/12/2019,ZPC671376,5,11021,The Laurus Trust (Cheadle Hulm,261400,Human Resources Temporary & Agency Staff ,Agency Staff,Services to People,Pendlebury PRU,"2,875.50",100290,10318
02/12/2019,ZPC671376,6,11021,The Laurus Trust (Cheadle Hulm,261400,Human Resources Temporary & Agency Staff ,Agency Staff,Services to People,Cedars PRU,"1,917.00",100290,10317
11/10/2019,ZSA668954,1,7030,MANCHESTER CITY COUNCIL SHARED,390000,Supplies and services,Supplies and services,Services to People,PH-Programme Mngmt,"5,158.36",401600,12732
21/11/2019,ZSA670806,1,350,Wicksteed Leisure,210000,Furniture & Soft Furnishings  ,Furniture and Equipment,Services to People,3 Harwich Close,"5,099.00",400105,11742
10/12/2019,ZSA671783,1,12864,BADGED BY DAVENPORTS.,140000,Clothing  ,Clothing Uniforms and Laundry,Services to People,Social Funds - Prog,"5,239.91",400606,12705
18/12/2019,ZSA672172,1,4272,Civica UK Ltd,270000,Information Communication Technology  ,Information and Communications Technology,Services to People,Social Funds Admin,"7,500.00",402001,12706
18/12/2019,ZSA672173,1,2209,FR Monkhouse Ltd,140000,Clothing  ,Clothing Uniforms and Laundry,Services to People,Social Funds - Prog,"15,000.00",400606,12705
11/10/2019,ZSB668910,1,10951,OPUS ENERGY LTD,370000,Utilities   ,Utilities,Services to People,*Schools referrl-ACE,"18,444.96",200510,10314
31/10/2019,ZSB669740,1,3529,Totally Local Company Ltd,111200,Catering Food & Beverages ,Catering Supplies,Services to People,Highfields PRU,"8,431.14",400422,10329
01/10/2019,ZSH668327,1,1799,Stockport Homes,999999,Fees and Charges,Fees and Charges,Services to Place,Housing Strategy,"14,753.75",401035,10955
07/10/2019,ZZC668637,1,5183,HERTFORDSHIRE COUNTY,320000,Social Community Care Supplies & Services  ,Care Payments,Services to People,RAA Adoption Count,"43,000.00",530306,12957
07/10/2019,ZZC668638,1,12675,Tiptoes Child Therapy Services,999999,Fees and Charges,Fees and Charges,Services to People,RAA - ASF Grant,"7,500.00",401035,12968
16/10/2019,ZZC669098,1,5555,MANCHESTER DEAF CENTRE LTD,261100,Human Resources Interpretation & Translation ,Professional Fees,Services to People,Incl - S.I.U - Perip,"5,564.66",401023,10307
18/10/2019,ZZC669293,1,12661,University College London Tuit,260000,Human Resources  ,Staff Training,Services to People,Sensory Support Serv,"6,375.00",102020,10325
22/10/2019,ZZC669425,1,12298,One Education Ltd,150000,Consultancy   ,Professional Fees,Services to People,RAA - Ctr Excellence,"13,320.00",401007,12967
28/10/2019,ZZC669606,1,4545,Humanware,210000,Furniture & Soft Furnishings  ,Furniture and Equipment,Services to People,Sensory Support Serv,"5,220.00",400105,10325
06/11/2019,ZZC670095,1,13509,Cuffe and Lacey,999999,Fees and Charges,Fees and Charges,Services to People,RAA - ASF Grant,"5,000.00",401035,12968
06/11/2019,ZZC670096,1,8766,ADOPTION MATTERS NORTHWEST,999999,Fees and Charges,Fees and Charges,Services to People,RAA - ASF Grant,"14,897.01",401035,12968
20/11/2019,ZZC670784,1,11156,David Hunter,150000,Consultancy   ,Professional Fees,Services to People,SG - Child Prot-Lscb,"6,750.00",401020,11424
21/11/2019,ZZC670912,1,5555,MANCHESTER DEAF CENTRE LTD,261100,Human Resources Interpretation & Translation ,Professional Fees,Services to People,Incl - S.I.U - Perip,"5,237.40",401023,10307
29/11/2019,ZZC671305,1,12106,KMS Media,190000,Facilities & Management Services  ,Office Expenses,Services to People,RAA Adoption Count,"6,722.80",400700,12957
17/12/2019,ZZC672060,1,12706,NEW ROOTS THERAPY NW,999999,Fees and Charges,Fees and Charges,Services to People,RAA - ASF Grant,"13,688.25",401035,12968
01/10/2019,ZZH668332,1,7007,Jupiter Play and Leisure Ltd,240000,Horticultural  ,Grounds Maintenance,#N/A,#N/A,"45,000.00",202032,C.10775
01/10/2019,ZZH668355,1,3707,Salford City Council/Finance,999999,Third party payments - Public Sector,Third party payments - Public Sector,Services to People,Scale & Spread - ACT,"30,000.00",500303,13028
01/10/2019,ZZH668358,1,6967,Wilde Consultants Ltd,150000,Consultancy   ,Professional Fees,#N/A,#N/A,"14,856.00",401007,C.00718.203
01/10/2019,ZZH668359,1,8817,AECOM Infrastructure & Environ,150000,Consultancy   ,Professional Fees,#N/A,#N/A,"39,293.90",401007,C.00717.201
01/10/2019,ZZH668371,1,2927,XMA Ltd,270000,Information Communication Technology  ,Information and Communications Technology,Services to Place,D & I Team,"8,970.40",402001,11960
01/10/2019,ZZH668371,2,2927,XMA Ltd,270000,Information Communication Technology  ,Information and Communications Technology,Services to Place,D & I Team,35.00,402001,11960
01/10/2019,ZZH668371,3,2927,XMA Ltd,270000,Information Communication Technology  ,Information and Communications Technology,Services to Place,D & I Team,35.00,402001,11960
01/10/2019,ZZH668371,4,2927,XMA Ltd,270000,Information Communication Technology  ,Information and Communications Technology,Services to Place,D & I Team,113.10,402001,11960
01/10/2019,ZZH668372,1,3290,Royal Mail,300000,Mail Services�  ,Office Expenses,Corporate and Support Services,Mailroom Service,"15,000.00",400711,11152
01/10/2019,ZZH668373,1,10841,Whistl UK Limited,300000,Mail Services�  ,Office Expenses,Corporate and Support Services,Mailroom Service,"80,000.00",400711,11152
01/10/2019,ZZH668385,1,10985,Broadstones School Ltd,261500,Human Resources Training & Conferences ,Fees and Charges,Services to People,SEN Independent Sch,"22,750.00",401024,10372
02/10/2019,ZZH668435,1,10985,Broadstones School Ltd,261500,Human Resources Training & Conferences ,Fees and Charges,Services to People,SEN Independent Sch,"19,550.00",401024,10372
02/10/2019,ZZH668476,1,10216,Cromwell Polythene Limited,182020,Environmental Services Waste Management,Waste Management Equipment,Services to Place,House sacks box bags,"23,998.00",400401,10868
03/10/2019,ZZH668507,1,6748,GEORGE COX & SONS LTD,390000,Supplies and services,Supplies and services,#N/A,#N/A,"8,175.00",401600,C.00950.203
03/10/2019,ZZH668508,1,6967,Wilde Consultants Ltd,150000,Consultancy   ,Professional Fees,Services to Place,Design Frmwk Staff,"81,270.00",401020,11965
03/10/2019,ZZH668518,1,10349,InterWorks Europe Limited,270000,Information Communication Technology  ,Information and Communications Technology,Corporate and Support Services,Business Intelligenc,"12,465.00",402001,11872
03/10/2019,ZZH668520,1,3156,Creative Ideas In Print,190000,Facilities & Management Services  ,Publicity and Promotion,Corporate and Support Services,POD Printing,"11,310.22",401800,11064
03/10/2019,ZZH668522,1,12268,Dunham Trust for The Orchards,170000,Education  ,Third party payments - Public Sector,Services to People,OLA pupils,"5,215.00",500304,10371
04/10/2019,ZZH668566,1,4272,Civica UK Ltd,181800,Environmental Services Technical Equipment ,Furniture and Equipment,Corporate and Support Services,Public Libraries Gen,"25,500.00",400111,11329
04/10/2019,ZZH668582,1,12445,Barbour Logic Ltd,270000,Information Communication Technology  ,Information and Communications Technology,Services to Place,Car Parks Admin,"15,713.00",402010,10005
07/10/2019,ZZH668656,1,7849,Lunson Mitchenall Ltd,150000,Consultancy   ,Professional Fees,Services to Place,Redrock IE,"11,582.40",401007,12062
08/10/2019,ZZH668667,1,2100,Lubbe and Sons (Bulbs) Ltd,240000,Horticultural  ,Grounds Maintenance,Services to Place,Land Dev-Werneth Os,570.00,202035,11280
08/10/2019,ZZH668667,2,2100,Lubbe and Sons (Bulbs) Ltd,240000,Horticultural  ,Grounds Maintenance,Services to Place,Land Dev-Werneth Os,300.00,202035,11280
08/10/2019,ZZH668667,3,2100,Lubbe and Sons (Bulbs) Ltd,240000,Horticultural  ,Grounds Maintenance,Services to Place,Land Dev-Werneth Os,100.00,202035,11280
08/10/2019,ZZH668667,4,2100,Lubbe and Sons (Bulbs) Ltd,240000,Horticultural  ,Grounds Maintenance,Services to Place,Land Dev-Werneth Os,720.00,202035,11280
08/10/2019,ZZH668667,5,2100,Lubbe and Sons (Bulbs) Ltd,240000,Horticultural  ,Grounds Maintenance,Services to Place,Land Dev-Werneth Os,285.00,202035,11280
08/10/2019,ZZH668667,6,2100,Lubbe and Sons (Bulbs) Ltd,240000,Horticultural  ,Grounds Maintenance,Services to Place,Land Dev-Werneth Os,"2,300.00",202035,11280
08/10/2019,ZZH668667,7,2100,Lubbe and Sons (Bulbs) Ltd,240000,Horticultural  ,Grounds Maintenance,Services to Place,Land Dev-Werneth Os,90.00,202035,11280
08/10/2019,ZZH668667,8,2100,Lubbe and Sons (Bulbs) Ltd,240000,Horticultural  ,Grounds Maintenance,Services to Place,Land Dev-Werneth Os,540.00,202035,11280
08/10/2019,ZZH668667,9,2100,Lubbe and Sons (Bulbs) Ltd,240000,Horticultural  ,Grounds Maintenance,Services to Place,Land Dev-Werneth Os,"2,080.00",202035,11280
08/10/2019,ZZH668667,10,2100,Lubbe and Sons (Bulbs) Ltd,240000,Horticultural  ,Grounds Maintenance,Services to Place,Land Dev-Werneth Os,600.00,202035,11280
08/10/2019,ZZH668667,11,2100,Lubbe and Sons (Bulbs) Ltd,240000,Horticultural  ,Grounds Maintenance,Services to Place,Land Dev-Werneth Os,400.00,202035,11280
08/10/2019,ZZH668710,1,7831,Transport for GM,390000,"Works - Construction, Repair & Maintenance  ",Capital Expenditure - Works,#N/A,#N/A,"21,451.33",200304,C.00992.203
08/10/2019,ZZH668725,1,11715,CBRE,150000,Consultancy   ,Professional Fees,Services to Place,Merseyway Shop Ctre,"37,100.00",401020,12866
08/10/2019,ZZH668725,2,11715,CBRE,150000,Consultancy   ,Professional Fees,Services to Place,Merseyway Shop Ctre,"6,360.00",401020,12866
08/10/2019,ZZH668725,3,11715,CBRE,150000,Consultancy   ,Professional Fees,Services to Place,Merseyway Shop Ctre,"41,340.00",401020,12866
08/10/2019,ZZH668725,4,11715,CBRE,150000,Consultancy   ,Professional Fees,Services to Place,Merseyway Shop Ctre,"6,360.00",401020,12866
09/10/2019,ZZH668748,1,1117,OLM Systems Ltd,270000,Information Communication Technology  ,Information and Communications Technology,Corporate and Support Services,IT Liquid Logic Proj,"120,000.00",402002,12958
09/10/2019,ZZH668771,1,6748,GEORGE COX & SONS LTD,390000,Supplies and services,Supplies and services,#N/A,#N/A,"54,040.92",401600,C.11502.086
09/10/2019,ZZH668792,1,7802,Craemer UK Ltd,182020,Environmental Services Waste Management,Waste Management Equipment,Services to Place,Wheelie Bins,"7,140.00",400401,10864
09/10/2019,ZZH668809,1,3421,Cadassist Ltd,390000,Supplies and services,Supplies and services,Services to Place,D & I Team,"10,500.00",401600,11960
09/10/2019,ZZH668811,1,6748,GEORGE COX & SONS LTD,#N/A,#N/A,#N/A,#N/A,#N/A,"12,408.16",0,0
09/10/2019,ZZH668813,1,82,Marwood Electrical Company Ltd,390000,"Works - Construction, Repair & Maintenance  ",Capital Expenditure - Works,#N/A,#N/A,"7,414.88",200304,C.01197.203
09/10/2019,ZZH668813,2,82,Marwood Electrical Company Ltd,390000,"Works - Construction, Repair & Maintenance  ",Capital Expenditure - Works,#N/A,#N/A,421.30,200304,C.01197.203
09/10/2019,ZZH668813,3,82,Marwood Electrical Company Ltd,390000,"Works - Construction, Repair & Maintenance  ",Capital Expenditure - Works,#N/A,#N/A,"43,983.72",200304,C.01197.203
09/10/2019,ZZH668813,4,82,Marwood Electrical Company Ltd,390000,"Works - Construction, Repair & Maintenance  ",Capital Expenditure - Works,#N/A,#N/A,758.34,200304,C.01197.203
09/10/2019,ZZH668813,5,82,Marwood Electrical Company Ltd,390000,"Works - Construction, Repair & Maintenance  ",Capital Expenditure - Works,#N/A,#N/A,"11,871.06",200304,C.01197.203
09/10/2019,ZZH668813,6,82,Marwood Electrical Company Ltd,390000,"Works - Construction, Repair & Maintenance  ",Capital Expenditure - Works,#N/A,#N/A,"18,676.26",200304,C.01197.203
09/10/2019,ZZH668813,7,82,Marwood Electrical Company Ltd,390000,"Works - Construction, Repair & Maintenance  ",Capital Expenditure - Works,#N/A,#N/A,"2,008.20",200304,C.01197.203
09/10/2019,ZZH668813,8,82,Marwood Electrical Company Ltd,390000,"Works - Construction, Repair & Maintenance  ",Capital Expenditure - Works,#N/A,#N/A,"16,535.40",200304,C.01197.203
09/10/2019,ZZH668813,9,82,Marwood Electrical Company Ltd,390000,"Works - Construction, Repair & Maintenance  ",Capital Expenditure - Works,#N/A,#N/A,"5,600.70",200304,C.01197.203
09/10/2019,ZZH668813,10,82,Marwood Electrical Company Ltd,390000,"Works - Construction, Repair & Maintenance  ",Capital Expenditure - Works,#N/A,#N/A,"2,274.04",200304,C.01197.203
09/10/2019,ZZH668813,11,82,Marwood Electrical Company Ltd,390000,"Works - Construction, Repair & Maintenance  ",Capital Expenditure - Works,#N/A,#N/A,"3,411.06",200304,C.01197.203
09/10/2019,ZZH668813,12,82,Marwood Electrical Company Ltd,390000,"Works - Construction, Repair & Maintenance  ",Capital Expenditure - Works,#N/A,#N/A,340.02,200304,C.01197.203
09/10/2019,ZZH668815,1,82,Marwood Electrical Company Ltd,390000,"Works - Construction, Repair & Maintenance  ",Capital Expenditure - Works,#N/A,#N/A,926.86,200304,C.01197.203
09/10/2019,ZZH668815,2,82,Marwood Electrical Company Ltd,390000,"Works - Construction, Repair & Maintenance  ",Capital Expenditure - Works,#N/A,#N/A,"19,885.36",200304,C.01197.203
09/10/2019,ZZH668815,3,82,Marwood Electrical Company Ltd,390000,"Works - Construction, Repair & Maintenance  ",Capital Expenditure - Works,#N/A,#N/A,"83,922.96",200304,C.01197.203
09/10/2019,ZZH668815,4,82,Marwood Electrical Company Ltd,390000,"Works - Construction, Repair & Maintenance  ",Capital Expenditure - Works,#N/A,#N/A,"5,139.86",200304,C.01197.203
09/10/2019,ZZH668815,5,82,Marwood Electrical Company Ltd,390000,"Works - Construction, Repair & Maintenance  ",Capital Expenditure - Works,#N/A,#N/A,"9,744.90",200304,C.01197.203
09/10/2019,ZZH668815,6,82,Marwood Electrical Company Ltd,390000,"Works - Construction, Repair & Maintenance  ",Capital Expenditure - Works,#N/A,#N/A,"4,695.27",200304,C.01197.203
09/10/2019,ZZH668815,7,82,Marwood Electrical Company Ltd,390000,"Works - Construction, Repair & Maintenance  ",Capital Expenditure - Works,#N/A,#N/A,"7,430.34",200304,C.01197.203
09/10/2019,ZZH668815,8,82,Marwood Electrical Company Ltd,390000,"Works - Construction, Repair & Maintenance  ",Capital Expenditure - Works,#N/A,#N/A,"4,800.60",200304,C.01197.203
09/10/2019,ZZH668815,9,82,Marwood Electrical Company Ltd,390000,"Works - Construction, Repair & Maintenance  ",Capital Expenditure - Works,#N/A,#N/A,"11,068.05",200304,C.01197.203
09/10/2019,ZZH668815,10,82,Marwood Electrical Company Ltd,390000,"Works - Construction, Repair & Maintenance  ",Capital Expenditure - Works,#N/A,#N/A,"2,274.04",200304,C.01197.203
09/10/2019,ZZH668815,11,82,Marwood Electrical Company Ltd,390000,"Works - Construction, Repair & Maintenance  ",Capital Expenditure - Works,#N/A,#N/A,"1,705.53",200304,C.01197.203
09/10/2019,ZZH668817,1,3529,Totally Local Company Ltd,240000,Horticultural  ,Grounds Maintenance,#N/A,#N/A,"5,792.30",202032,C.01290.203
09/10/2019,ZZH668819,1,6116,Atkins Limited,150000,Consultancy   ,Professional Fees,Services to Place,Invest in Growth,"44,360.00",401020,10091
09/10/2019,ZZH668820,1,6967,Wilde Consultants Ltd,150000,Consultancy   ,Professional Fees,Services to Place,Rechargeable work,"55,305.00",401007,11961
10/10/2019,ZZH668829,1,683,AECOM Limited,150000,Consultancy   ,Professional Fees,Services to Place,Local Plan Project,"61,483.00",401007,12936
10/10/2019,ZZH668837,1,12367,Beech Hall School,261500,Human Resources Training & Conferences ,Fees and Charges,Services to People,SEN Independent Sch,"24,059.00",401024,10372
10/10/2019,ZZH668838,1,12367,Beech Hall School,261500,Human Resources Training & Conferences ,Fees and Charges,Services to People,SEN Independent Sch,"23,057.71",401024,10372
10/10/2019,ZZH668882,1,3529,Totally Local Company Ltd,240000,Horticultural  ,Grounds Maintenance,Services to Place,Mill Lane Cemetery,"7,000.00",202035,11287
10/10/2019,ZZH668883,1,3529,Totally Local Company Ltd,240000,Horticultural  ,Grounds Maintenance,Services to Place,Highfield Cemetery,"5,688.00",202035,11282
10/10/2019,ZZH668899,1,13835,Dalcour Maclaren,999999,Acquisition of Land and Buildings,Capital Expenditure - Acquisitions,#N/A,#N/A,"5,054.46",200300,C.00945.201
11/10/2019,ZZH668906,1,13551,Permanent Futures Ltd,270000,Information Communication Technology  ,Information and Communications Technology,Corporate and Support Services,IT Liquid Logic Proj,"26,675.00",402002,12958
11/10/2019,ZZH668930,1,35,CBC Computer Systems Ltd,270000,Information Communication Technology  ,Information and Communications Technology,Services to People,CADA grant,"3,950.00",402001,13032
11/10/2019,ZZH668930,2,35,CBC Computer Systems Ltd,270000,Information Communication Technology  ,Information and Communications Technology,Services to People,CADA grant,"1,970.00",402001,13032
11/10/2019,ZZH668930,3,35,CBC Computer Systems Ltd,270000,Information Communication Technology  ,Information and Communications Technology,Services to People,CADA grant,190.00,402001,13032
14/10/2019,ZZH668977,1,13846,Knowledgepool Group Ltd,260000,Human Resources  ,Staff Training,Services to People,Reducing Prtal Conf,"25,100.00",102020,13036
14/10/2019,ZZH668980,1,270,Manchester Met University,260000,Human Resources  ,Staff Training,Services to Place,Local Plan Project,"29,901.00",102020,12936
14/10/2019,ZZH668981,1,13769,WYG Group Limited,260000,Human Resources  ,Staff Training,Services to Place,Local Plan Project,"44,405.00",102020,12936
14/10/2019,ZZH668995,1,3529,Totally Local Company Ltd,240000,Horticultural  ,Grounds Maintenance,#N/A,#N/A,"9,554.52",202032,C.10775
15/10/2019,ZZH669030,1,13233,MetDesk Limited,181800,Environmental Services Technical Equipment ,Furniture and Equipment,Services to Place,Gritting,"6,237.00",400110,12033
15/10/2019,ZZH669068,1,2100,Lubbe and Sons (Bulbs) Ltd,240000,Horticultural  ,Grounds Maintenance,Services to Place,Land Dev-Werneth Os,"8,000.00",202035,11280
15/10/2019,ZZH669081,1,7670,Wilds Of Oldham,110000,Catering  ,Expenses and Allowances,Corporate and Support Services,Town Hall Events,"5,000.00",402202,11375
15/10/2019,ZZH669088,1,6967,Wilde Consultants Ltd,150000,Consultancy   ,Professional Fees,Services to Place,Design Frmwk Staff,"21,870.00",401020,11965
16/10/2019,ZZH669136,1,865,Bethell Construction Ltd,390000,Supplies and services,Supplies and services,#N/A,#N/A,"20,505.48",401600,C.01265.203
17/10/2019,ZZH669145,1,10349,InterWorks Europe Limited,270000,Information Communication Technology  ,Information and Communications Technology,Corporate and Support Services,Business Intelligenc,"47,121.40",402001,11872
17/10/2019,ZZH669185,1,12263,Ashgate Specialist Support Pri,170000,Education  ,Third party payments - Public Sector,Services to People,OLA pupils,"8,236.00",500304,10371
17/10/2019,ZZH669186,1,13205,Manchester Occupational Therap,150000,Consultancy   ,Professional Fees,Services to People,SEN Specific support,"30,000.00",401020,10300
17/10/2019,ZZH669187,1,13002,SpeechWise Speech and Language,150000,Consultancy   ,Professional Fees,Services to People,SEN Specific support,"30,000.00",401020,10300
17/10/2019,ZZH669188,1,12180,Acorn Care and Education,261500,Human Resources Training & Conferences ,Fees and Charges,Services to People,SEN Independent Sch,"19,595.33",401024,10372
17/10/2019,ZZH669189,1,12367,Beech Hall School,261500,Human Resources Training & Conferences ,Fees and Charges,Services to People,SEN Independent Sch,"21,714.00",401024,10372
17/10/2019,ZZH669192,1,1669,Charnwood Nursery,261500,Human Resources Training & Conferences ,Fees and Charges,Services to People,SEN Independent Sch,"8,302.98",401024,10372
17/10/2019,ZZH669193,1,1669,Charnwood Nursery,261500,Human Resources Training & Conferences ,Fees and Charges,Services to People,SEN Independent Sch,"8,302.98",401024,10372
17/10/2019,ZZH669194,1,1669,Charnwood Nursery,261500,Human Resources Training & Conferences ,Fees and Charges,Services to People,SEN Independent Sch,"8,302.98",401024,10372
17/10/2019,ZZH669195,1,1669,Charnwood Nursery,261500,Human Resources Training & Conferences ,Fees and Charges,Services to People,SEN Independent Sch,"8,302.98",401024,10372
17/10/2019,ZZH669196,1,1669,Charnwood Nursery,261500,Human Resources Training & Conferences ,Fees and Charges,Services to People,SEN Independent Sch,"8,302.98",401024,10372
17/10/2019,ZZH669197,1,6967,Wilde Consultants Ltd,150000,Consultancy   ,Professional Fees,Services to Place,Design Frmwk Staff,"82,680.00",401020,11965
17/10/2019,ZZH669198,1,6967,Wilde Consultants Ltd,150000,Consultancy   ,Professional Fees,Services to Place,Design Frmwk Staff,"67,080.00",401020,11965
17/10/2019,ZZH669199,1,6967,Wilde Consultants Ltd,150000,Consultancy   ,Professional Fees,Services to Place,Design Frmwk Staff,"60,840.00",401020,11965
17/10/2019,ZZH669200,1,6967,Wilde Consultants Ltd,150000,Consultancy   ,Professional Fees,Services to Place,Design Frmwk Staff,"51,324.00",401020,11965
17/10/2019,ZZH669201,1,6967,Wilde Consultants Ltd,150000,Consultancy   ,Professional Fees,Services to Place,Design Frmwk Staff,"37,648.00",401020,11965
17/10/2019,ZZH669202,1,6967,Wilde Consultants Ltd,150000,Consultancy   ,Professional Fees,Services to Place,Design Frmwk Staff,"59,800.00",401020,11965
17/10/2019,ZZH669203,1,6967,Wilde Consultants Ltd,150000,Consultancy   ,Professional Fees,Services to Place,Design Frmwk Staff,"60,840.00",401020,11965
17/10/2019,ZZH669205,1,6967,Wilde Consultants Ltd,150000,Consultancy   ,Professional Fees,Services to Place,Design Frmwk Staff,"58,032.00",401020,11965
17/10/2019,ZZH669219,1,3529,Totally Local Company Ltd,390000,"Works - Construction, Repair & Maintenance  ",Capital Expenditure - Works,#N/A,#N/A,"19,158.48",200304,C.01065.203
17/10/2019,ZZH669244,1,7296,Allpay-Net Ltd,999999,Financial Services,Bank Charges,Corporate and Support Services,U-Misc Fin-Corp Mang,"40,000.00",601403,10971
17/10/2019,ZZH669247,1,683,AECOM Limited,150000,Consultancy   ,Professional Fees,#N/A,#N/A,"39,293.90",401007,C.00717.201
18/10/2019,ZZH669270,1,1694,Network Rail Infras'ture Ltd,999999,Fees and Charges,Fees and Charges,#N/A,#N/A,"7,627.63",401601,C.00717.201
18/10/2019,ZZH669270,2,1694,Network Rail Infras'ture Ltd,999999,Fees and Charges,Fees and Charges,#N/A,#N/A,"8,192.30",401601,C.00717.201
18/10/2019,ZZH669274,1,814,United Utilities/Diversiona,390000,Supplies and services,Supplies and services,#N/A,#N/A,"602,630.10",401600,C.00880.203
18/10/2019,ZZH669278,1,5070,CENTRE FOR LOCAL ECONOMIC S,150000,Consultancy   ,Professional Fees,Services to Place,Economic Development,"11,990.00",401007,10103
18/10/2019,ZZH669308,1,6748,GEORGE COX & SONS LTD,390000,Supplies and services,Supplies and services,#N/A,#N/A,"14,350.75",401600,C.11502.083
18/10/2019,ZZH669312,1,8121,GallifordTry Infrastructure Lt,171113,Education Library Books ,Library Equipment,Services to Place,Highways-Road Safety,"6,723.41",400202,11970
18/10/2019,ZZH669313,1,6098,SWARCO Traffic Ltd,171113,Education Library Books ,Library Equipment,Services to Place,Highways-Road Safety,"5,076.10",400202,11970
18/10/2019,ZZH669317,1,3529,Totally Local Company Ltd,230000,Highway Equipment & Materials�   ,Highways Maintenance,Services to Place,Berevement Services,"5,850.00",202056,11285
18/10/2019,ZZH669321,1,7167,Cheshire East Borough Council.,390000,Supplies and services,Supplies and services,#N/A,#N/A,"6,492.06",401600,C.00880.203
21/10/2019,ZZH669326,1,5526,PROGRESSIVE  STHREE,150000,Consultancy   ,Professional Fees,Corporate and Support Services,Business Intelligenc,"24,750.00",401007,11872
21/10/2019,ZZH669330,1,1339,Stockport NHS Foundation Trust,260000,Human Resources  ,Other Payments,Services to People,COVID-19,"226,000.00",100304,12926
21/10/2019,ZZH669338,1,10203,PINSENT MASONS LLP,280000,Legal Services  ,Legal Fees,#N/A,#N/A,"30,000.00",401016,C.10932
21/10/2019,ZZH669339,1,12344,Graham Construction Ltd,150000,Consultancy   ,Professional Fees,#N/A,#N/A,"201,018.79",401007,C.10932.002
21/10/2019,ZZH669348,1,11816,MANCHESTER COMMUNITY TRANSPORT,381600,Vehicle Management Hire/Leasing ,Leasing /Transport Hire,Services to People,LD Care Purchasing,"20,000.00",300302,11837
22/10/2019,ZZH669431,1,13445,All Pump Solutions,390000,"Works - Construction, Repair & Maintenance  ",Capital Expenditure - Works,#N/A,#N/A,"8,409.00",200304,C.00710.203
22/10/2019,ZZH669434,1,5835,Virgin Media Access Network Pl,230000,Highway Equipment & Materials�   ,Highways Maintenance,#N/A,#N/A,"7,042.76",202055,C.01298.203
22/10/2019,ZZH669435,1,6967,Wilde Consultants Ltd,150000,Consultancy   ,Professional Fees,#N/A,#N/A,"29,861.75",401007,C.00718.203
22/10/2019,ZZH669436,1,6967,Wilde Consultants Ltd,150000,Consultancy   ,Professional Fees,#N/A,#N/A,"12,200.00",401007,C.00718.203
23/10/2019,ZZH669445,1,10855,Bloom Procurement Services,150000,Consultancy   ,Professional Fees,Services to Place,Sports Trust,"39,379.00",401007,11294
23/10/2019,ZZH669457,1,10855,Bloom Procurement Services,150000,Consultancy   ,Professional Fees,Services to Place,Regen & Development,"12,200.00",401007,10098
23/10/2019,ZZH669458,1,683,AECOM Limited,150000,Consultancy   ,Professional Fees,Services to Place,Local Plan Project,"50,000.00",401007,12936
25/10/2019,ZZH669522,1,10314,Berwick Partners,150000,Consultancy   ,Professional Fees,Services to Place,MDC Mayoral DC,"21,500.00",401020,13033
28/10/2019,ZZH669574,1,6748,GEORGE COX & SONS LTD,370000,Utilities   ,Utilities,Services to Place,Land Dev-Werneth Os,"14,802.69",201004,11280
28/10/2019,ZZH669582,1,4617,Creative Support Ltd,320000,Social Community Care Supplies & Services  ,Care Payments,Services to People,Reddish ECH,"401,279.49",530332,13048
28/10/2019,ZZH669586,1,223,Groundwork Landscapes Ltd,240000,Horticultural  ,Grounds Maintenance,#N/A,#N/A,"49,165.30",202032,C.10775
28/10/2019,ZZH669587,1,223,Groundwork Landscapes Ltd,240000,Horticultural  ,Grounds Maintenance,#N/A,#N/A,"69,707.72",202032,C.10775
28/10/2019,ZZH669588,1,223,Groundwork Landscapes Ltd,240000,Horticultural  ,Grounds Maintenance,#N/A,#N/A,"40,977.50",202032,C.10775
28/10/2019,ZZH669601,1,223,Groundwork Landscapes Ltd,240000,Horticultural  ,Grounds Maintenance,#N/A,#N/A,"103,679.95",202032,C.10775
28/10/2019,ZZH669610,1,1222,Horticon Ltd,240000,Horticultural  ,Grounds Maintenance,#N/A,#N/A,"78,358.40",202032,C.10775
28/10/2019,ZZH669611,1,1222,Horticon Ltd,240000,Horticultural  ,Grounds Maintenance,#N/A,#N/A,"66,388.30",202032,C.10775
28/10/2019,ZZH669612,1,1222,Horticon Ltd,240000,Horticultural  ,Grounds Maintenance,#N/A,#N/A,"65,481.90",202032,C.10775
28/10/2019,ZZH669622,1,10615,Mosaic Event Catering Limited,110000,Catering  ,Catering Supplies,Corporate and Support Services,Town Hall Events,"10,998.33",400420,11375
30/10/2019,ZZH669681,1,35,CBC Computer Systems Ltd,270000,Information Communication Technology  ,Information and Communications Technology,Corporate and Support Services,POD Core Staffing,"6,075.00",402001,12590
30/10/2019,ZZH669681,2,35,CBC Computer Systems Ltd,270000,Information Communication Technology  ,Information and Communications Technology,Corporate and Support Services,POD Core Staffing,52.50,402001,12590
30/10/2019,ZZH669684,1,10855,Bloom Procurement Services,311410,Healthcare Occupational Therapy Services ,Fees and Charges,Corporate and Support Services,POD Occ. Health,"80,000.00",400706,11721
30/10/2019,ZZH669711,1,1583,Tunstall Healthcare (UK) Ltd,210000,Furniture & Soft Furnishings  ,Furniture and Equipment,#N/A,#N/A,"3,840.00",400105,C.10004.001
30/10/2019,ZZH669711,2,1583,Tunstall Healthcare (UK) Ltd,210000,Furniture & Soft Furnishings  ,Furniture and Equipment,#N/A,#N/A,"1,224.00",400105,C.10004.001
31/10/2019,ZZH669744,1,2100,Lubbe and Sons (Bulbs) Ltd,240000,Horticultural  ,Grounds Maintenance,Services to Place,Land Dev-Werneth Os,"8,000.00",202035,11280
31/10/2019,ZZH669755,1,1339,Stockport NHS Foundation Trust,290000,Arts & Leisure Services  ,Publicity and Promotion,Services to People,Start Well Runn Cost,"16,493.00",401801,12881
31/10/2019,ZZH669763,1,757,Transport for Greater Manchest,390000,"Works - Construction, Repair & Maintenance  ",Capital Expenditure - Works,#N/A,#N/A,"25,000.00",200304,C.00992.203
31/10/2019,ZZH669766,1,6748,GEORGE COX & SONS LTD,390000,Supplies and services,Supplies and services,#N/A,#N/A,"31,020.69",401600,C.01257.203
31/10/2019,ZZH669773,1,3529,Totally Local Company Ltd,390000,"Works - Construction, Repair & Maintenance  ",Capital Expenditure - Works,#N/A,#N/A,"8,862.36",200304,C.01286.203
31/10/2019,ZZH669774,1,3529,Totally Local Company Ltd,390000,"Works - Construction, Repair & Maintenance  ",Capital Expenditure - Works,#N/A,#N/A,"8,862.36",200304,C.01286.203
31/10/2019,ZZH669819,1,12193,Greater Manchester Combined Au,390000,"Works - Construction, Repair & Maintenance  ",Capital Expenditure - Works,#N/A,#N/A,"25,000.00",200304,C.00992.203
31/10/2019,ZZH669820,1,683,AECOM Limited,150000,Consultancy   ,Professional Fees,Services to Place,Highways-Network Man,"50,836.80",401007,11968
31/10/2019,ZZH669849,1,865,Bethell Construction Ltd,390000,Supplies and services,Supplies and services,#N/A,#N/A,"34,303.40",401600,C.01256.203
31/10/2019,ZZH669850,1,683,AECOM Limited,150000,Consultancy   ,Professional Fees,Services to Place,Design Frmwk Staff,"31,029.00",401007,11965
01/11/2019,ZZH669863,1,12418,Elasticsearch Ltd,390000,"Works - Construction, Repair & Maintenance  ",Fees and Charges,Corporate and Support Services,Business Intelligenc,"10,500.00",401017,11872
01/11/2019,ZZH669881,1,1339,Stockport NHS Foundation Trust,320000,Social Community Care Supplies & Services  ,Care Payments,Services to People,DP - Respite,"18,330.00",530335,11513
01/11/2019,ZZH669890,1,6967,Wilde Consultants Ltd,150000,Consultancy   ,Professional Fees,#N/A,#N/A,"39,860.38",401007,C.11502.106
01/11/2019,ZZH669892,1,1644,Tameside MBC,999999,Fees and Charges,Fees and Charges,Services to People,Adults Management,"55,000.00",401035,11873
01/11/2019,ZZH669893,1,10337,SIGNPOST STOCKPORT for CARERS,999999,Fees and Charges,Fees and Charges,Services to People,iBCF,"50,000.00",402404,13000
01/11/2019,ZZH669903,1,433,Mott MacDonald Ltd,150000,Consultancy   ,Professional Fees,#N/A,#N/A,"30,000.00",401007,C.01165.201
04/11/2019,ZZH669912,1,11800,Stockport Medical Group - Dela,999999,Social Community Care Supplies & Services  ,Service Contract Payments,Services to People,PH-Sexual Health LES,"25,492.00",561704,12748
04/11/2019,ZZH669918,1,1222,Horticon Ltd,240000,Horticultural  ,Grounds Maintenance,#N/A,#N/A,"69,707.72",202032,C.10775
04/11/2019,ZZH669925,1,1872,Marketing Manchester,261500,Human Resources Training & Conferences ,Expenses and Allowances,Services to Place,Town Centre Devt Tea,"12,000.00",402201,10072
05/11/2019,ZZH669965,1,13703,St Ralph Sherwin Catholic Mult,261500,Human Resources Training & Conferences ,Fees and Charges,Services to People,OLA pupils,"16,288.00",401024,10371
05/11/2019,ZZH669969,1,13223,A Pacini Ltd,150000,Consultancy   ,Professional Fees,Services to Place,Property Client Acct,"5,304.86",401020,12328
05/11/2019,ZZH669999,1,4083,Hulme Hall School,261500,Human Resources Training & Conferences ,Fees and Charges,Services to People,SEN Independent Sch,"6,256.58",401024,10372
05/11/2019,ZZH670003,1,11009,Nisai Virtual Academy Ltd,261500,Human Resources Training & Conferences ,Fees and Charges,Services to People,SEN Specific support,"5,250.00",401024,10300
05/11/2019,ZZH670018,1,1722,The Together Trust Centre,261500,Human Resources Training & Conferences ,Fees and Charges,Services to People,SEN Independent Sch,"20,746.93",401024,10372
05/11/2019,ZZH670020,1,1722,The Together Trust Centre,261500,Human Resources Training & Conferences ,Fees and Charges,Services to People,SEN NMSS School Fees,"35,700.00",401024,12710
05/11/2019,ZZH670021,1,1722,The Together Trust Centre,261500,Human Resources Training & Conferences ,Fees and Charges,Services to People,SEN NMSS School Fees,"35,506.25",401024,12710
05/11/2019,ZZH670023,1,1722,The Together Trust Centre,261500,Human Resources Training & Conferences ,Fees and Charges,Services to People,SEN NMSS School Fees,"32,237.38",401024,12710
05/11/2019,ZZH670030,1,3529,Totally Local Company Ltd,181800,Environmental Services Technical Equipment ,Furniture and Equipment,Corporate and Support Services,Parliment&O Election,"20,000.00",400110,12103
05/11/2019,ZZH670059,1,10985,Broadstones School Ltd,261500,Human Resources Training & Conferences ,Fees and Charges,Services to People,SEN Independent Sch,"14,450.00",401024,10372
06/11/2019,ZZH670091,1,8957,P88632 Stockport Medical Group,999999,Social Community Care Supplies & Services  ,Service Contract Payments,Services to People,PH-Health Protection,"2,819.50",561704,12739
06/11/2019,ZZH670091,2,8957,P88632 Stockport Medical Group,999999,Social Community Care Supplies & Services  ,Service Contract Payments,Services to People,PH-Health Protection,"2,138.00",561704,12739
06/11/2019,ZZH670091,3,8957,P88632 Stockport Medical Group,999999,Social Community Care Supplies & Services  ,Service Contract Payments,Services to People,PH-Health Protection,"1,396.00",561704,12739
06/11/2019,ZZH670091,4,8957,P88632 Stockport Medical Group,999999,Social Community Care Supplies & Services  ,Service Contract Payments,Services to People,PH-Sexual Health,"2,450.00",561704,12736
06/11/2019,ZZH670091,5,8957,P88632 Stockport Medical Group,999999,Social Community Care Supplies & Services  ,Service Contract Payments,Services to People,PH-Sexual Health,"2,550.00",561704,12736
06/11/2019,ZZH670091,6,8957,P88632 Stockport Medical Group,999999,Social Community Care Supplies & Services  ,Service Contract Payments,Services to People,PH-Sexual Health,"2,439.30",561704,12736
06/11/2019,ZZH670091,7,8957,P88632 Stockport Medical Group,999999,Social Community Care Supplies & Services  ,Service Contract Payments,Services to People,PH-Sexual Health,"2,032.75",561704,12736
06/11/2019,ZZH670093,1,6170,Greater Manchester TreeStation,390000,"Works - Construction, Repair & Maintenance  ",Repairs and Maintenance,Services to Place,Car Park Maintenance,"6,645.00",200123,12510
06/11/2019,ZZH670125,1,865,Bethell Construction Ltd,390000,Supplies and services,Supplies and services,#N/A,#N/A,"36,575.99",401600,C.01265.203
06/11/2019,ZZH670144,1,6967,Wilde Consultants Ltd,150000,Consultancy   ,Professional Fees,Services to Place,Network Assets Staff,"19,080.00",401007,11959
06/11/2019,ZZH670145,1,6967,Wilde Consultants Ltd,150000,Consultancy   ,Professional Fees,Services to Place,Network Assets Staff,"19,080.00",401007,11959
06/11/2019,ZZH670146,1,683,AECOM Limited,150000,Consultancy   ,Professional Fees,Services to Place,Network Assets Staff,"24,195.78",401007,11959
06/11/2019,ZZH670147,1,683,AECOM Limited,150000,Consultancy   ,Professional Fees,Services to Place,Network Assets Staff,"24,195.78",401007,11959
06/11/2019,ZZH670149,1,8646,MPH INSPECTION SERVICES,350000,Street & Traffic Management  ,Fixtures and Fittings,Services to Place,Struc Test of Column,"27,100.00",201202,11995
06/11/2019,ZZH670150,1,6967,Wilde Consultants Ltd,150000,Consultancy   ,Professional Fees,Services to Place,Network Assets Staff,"18,960.00",401007,11959
07/11/2019,ZZH670177,1,7831,DV Transport for GM,390000,"Works - Construction, Repair & Maintenance  ",Capital Expenditure - Works,#N/A,#N/A,"21,451.33",200304,C.00992.203
07/11/2019,ZZH670225,1,6967,Wilde Consultants Ltd,150000,Consultancy   ,Professional Fees,#N/A,#N/A,"88,078.64",401007,C.01179.202
11/11/2019,ZZH670352,1,12480,TS4TE Cooperative Ltd,390000,Supplies and services,Supplies and services,Services to People,PH-Health Protection,"18,000.00",401600,12739
11/11/2019,ZZH670359,1,6170,Greater Manchester TreeStation,390000,"Works - Construction, Repair & Maintenance  ",Repairs and Maintenance,Services to Place,Car Park Maintenance,"9,560.00",200123,12510
12/11/2019,ZZH670369,1,10858,Acorn Recovery Projects,261500,Human Resources Training & Conferences ,Fees and Charges,Services to Place,Contin Educ Service,"3,600.00",401024,10511
12/11/2019,ZZH670369,2,10858,Acorn Recovery Projects,261500,Human Resources Training & Conferences ,Fees and Charges,Services to Place,Contin Educ Service,"5,400.00",401024,10511
12/11/2019,ZZH670369,3,10858,Acorn Recovery Projects,261500,Human Resources Training & Conferences ,Fees and Charges,Services to Place,Contin Educ Service,"3,600.00",401024,10511
12/11/2019,ZZH670369,4,10858,Acorn Recovery Projects,261500,Human Resources Training & Conferences ,Fees and Charges,Services to Place,Contin Educ Service,"2,700.00",401024,10511
12/11/2019,ZZH670369,5,10858,Acorn Recovery Projects,261500,Human Resources Training & Conferences ,Fees and Charges,Services to Place,Contin Educ Service,"5,400.00",401024,10511
12/11/2019,ZZH670369,6,10858,Acorn Recovery Projects,261500,Human Resources Training & Conferences ,Fees and Charges,Services to Place,Contin Educ Service,"5,850.00",401024,10511
12/11/2019,ZZH670398,1,8010,GROUNDWORK & LEISURE SERVIC,240000,Horticultural  ,Grounds Maintenance,#N/A,#N/A,"14,210.00",202032,C.10775
12/11/2019,ZZH670410,1,10611,Wates Construction Ltd,150000,Consultancy   ,Professional Fees,#N/A,#N/A,"18,211.44",401007,C.10897.001
12/11/2019,ZZH670430,1,6748,GEORGE COX & SONS LTD,390000,Supplies and services,Supplies and services,#N/A,#N/A,"12,408.16",401600,C.00950.203
12/11/2019,ZZH670453,1,10857,Foodsync CIC,390000,Supplies and services,Supplies and services,Services to Place,Economic Development,"5,000.00",401600,10103
13/11/2019,ZZH670472,1,11715,CBRE,150000,Consultancy   ,Professional Fees,Services to Place,Merseyway Shop Ctre,"5,610.00",401020,12866
13/11/2019,ZZH670472,2,11715,CBRE,150000,Consultancy   ,Professional Fees,Services to Place,Merseyway Shop Ctre,"2,700.00",401020,12866
13/11/2019,ZZH670472,3,11715,CBRE,150000,Consultancy   ,Professional Fees,Services to Place,Merseyway Shop Ctre,"1,500.00",401020,12866
13/11/2019,ZZH670472,4,11715,CBRE,150000,Consultancy   ,Professional Fees,Services to Place,Merseyway Shop Ctre,"2,500.00",401020,12866
13/11/2019,ZZH670472,5,11715,CBRE,150000,Consultancy   ,Professional Fees,Services to Place,Merseyway Shop Ctre,"2,400.00",401020,12866
13/11/2019,ZZH670475,1,6748,GEORGE COX & SONS LTD,390000,Supplies and services,Supplies and services,#N/A,#N/A,"13,128.68",401600,C.11502.083
13/11/2019,ZZH670476,1,6748,GEORGE COX & SONS LTD,390000,Supplies and services,Supplies and services,#N/A,#N/A,"12,839.31",401600,C.11502.090
13/11/2019,ZZH670488,1,12609,ASHTEAD PLANT HIRE,202000,Financial Services Rents ,Rents,Corporate and Support Services,Parliment&O Election,"11,937.00",200720,12103
14/11/2019,ZZH670521,1,223,Groundwork Landscapes Ltd,390000,"Works - Construction, Repair & Maintenance  ",Repairs and Maintenance,Services to Place,Berevement Services,"4,485.00",200123,11285
14/11/2019,ZZH670521,2,223,Groundwork Landscapes Ltd,390000,"Works - Construction, Repair & Maintenance  ",Repairs and Maintenance,Services to Place,Berevement Services,"1,725.00",200123,11285
14/11/2019,ZZH670530,1,13874,HUMAN SUPPORT GROUP LTD,320000,Social Community Care Supplies & Services  ,Care Payments,Services to People,Heald Green ECH,"283,077.83",530332,13051
14/11/2019,ZZH670531,1,13884,Crossroads Together,320000,Social Community Care Supplies & Services  ,Care Payments,Services to People,Edgeley ECH,"373,116.02",530332,13049
14/11/2019,ZZH670532,1,13884,Crossroads Together,320000,Social Community Care Supplies & Services  ,Care Payments,Services to People,Marple ECH,"286,344.85",530332,13050
15/11/2019,ZZH670608,1,2927,XMA Ltd,270000,Information Communication Technology  ,Information and Communications Technology,Services to People,AOM costs,56.00,402001,11878
15/11/2019,ZZH670608,2,2927,XMA Ltd,270000,Information Communication Technology  ,Information and Communications Technology,Services to People,AOM costs,56.00,402001,11878
15/11/2019,ZZH670608,3,2927,XMA Ltd,270000,Information Communication Technology  ,Information and Communications Technology,Services to People,AOM costs,195.52,402001,11878
15/11/2019,ZZH670608,4,2927,XMA Ltd,270000,Information Communication Technology  ,Information and Communications Technology,Services to People,AOM costs,"9,504.32",402001,11878
15/11/2019,ZZH670610,1,1900,Broxap Ltd,350000,Street & Traffic Management  ,Fixtures and Fittings,Services to Place,Public Realm Inspect,"5,292.00",201202,10879
18/11/2019,ZZH670709,1,13393,Valtech Limited,390000,"Works - Construction, Repair & Maintenance  ",Fees and Charges,Corporate and Support Services,Driver Assessment,"5,050.00",401017,11113
19/11/2019,ZZH670735,1,5915,Atkins Global Limited,150000,Consultancy   ,Professional Fees,Services to Place,Design Frmwk Staff,"96,000.00",401020,11965
19/11/2019,ZZH670748,1,10670,Osborne Richardson,150000,Consultancy   ,Professional Fees,Services to Place,Food & Safety,"7,371.80",401007,10912
19/11/2019,ZZH670748,2,10670,Osborne Richardson,150000,Consultancy   ,Professional Fees,Services to Place,Food & Safety,"2,772.00",401007,10912
19/11/2019,ZZH670756,1,3529,Totally Local Company Ltd,390000,"Works - Construction, Repair & Maintenance  ",Capital Expenditure - Works,#N/A,#N/A,"9,950.02",200304,C.01268.203
20/11/2019,ZZH670759,1,2927,XMA Ltd,270000,Information Communication Technology  ,Information and Communications Technology,Corporate and Support Services,IT Infrastructure,"14,281.40",402002,11324
20/11/2019,ZZH670759,2,2927,XMA Ltd,270000,Information Communication Technology  ,Information and Communications Technology,Corporate and Support Services,IT Infrastructure,"3,882.50",402002,11324
20/11/2019,ZZH670759,3,2927,XMA Ltd,270000,Information Communication Technology  ,Information and Communications Technology,Corporate and Support Services,IT Infrastructure,"1,057.00",402002,11324
20/11/2019,ZZH670788,1,12479,Jisc Services Ltd - Subscripti,270000,Information Communication Technology  ,Information and Communications Technology,Corporate and Support Services,IT Infrastructure,"4,464.91",402002,11324
20/11/2019,ZZH670788,1,12479,Jisc Services Ltd - Subscripti,270000,Information Communication Technology  ,Information and Communications Technology,Corporate and Support Services,IT School,"4,464.91",402002,11418
20/11/2019,ZZH670788,2,12479,Jisc Services Ltd - Subscripti,270000,Information Communication Technology  ,Information and Communications Technology,Corporate and Support Services,IT Infrastructure,"1,000.00",402002,11324
20/11/2019,ZZH670788,2,12479,Jisc Services Ltd - Subscripti,270000,Information Communication Technology  ,Information and Communications Technology,Corporate and Support Services,IT School,"1,000.00",402002,11418
20/11/2019,ZZH670788,3,12479,Jisc Services Ltd - Subscripti,270000,Information Communication Technology  ,Information and Communications Technology,Corporate and Support Services,IT Infrastructure,"7,786.91",402002,11324
20/11/2019,ZZH670788,3,12479,Jisc Services Ltd - Subscripti,270000,Information Communication Technology  ,Information and Communications Technology,Corporate and Support Services,IT School,"7,786.91",402002,11418
20/11/2019,ZZH670788,4,12479,Jisc Services Ltd - Subscripti,270000,Information Communication Technology  ,Information and Communications Technology,Corporate and Support Services,IT Infrastructure,"1,000.00",402002,11324
20/11/2019,ZZH670788,4,12479,Jisc Services Ltd - Subscripti,270000,Information Communication Technology  ,Information and Communications Technology,Corporate and Support Services,IT School,"1,000.00",402002,11418
21/11/2019,ZZH670841,1,628,Life Leisure,150000,Consultancy   ,Professional Fees,Services to People,PH-Physical Activity,"10,750.00",401020,12834
21/11/2019,ZZH670846,1,865,Bethell Construction Ltd,390000,Supplies and services,Supplies and services,#N/A,#N/A,"300,188.14",401600,C.01171.203
21/11/2019,ZZH670858,1,757,Transport for Greater Manchest,390000,"Works - Construction, Repair & Maintenance  ",Capital Expenditure - Works,#N/A,#N/A,"5,060.00",200304,C.00710.203
21/11/2019,ZZH670860,1,3529,Totally Local Company Ltd,390000,"Works - Construction, Repair & Maintenance  ",Capital Expenditure - Works,#N/A,#N/A,"26,152.08",200304,C.01293.203
21/11/2019,ZZH670873,1,4445,Insight Media Internet Ltd,270000,Information Communication Technology  ,Information and Communications Technology,Corporate and Support Services,Public Libraries Gen,"17,700.00",402001,11329
21/11/2019,ZZH670892,1,683,AECOM Limited,150000,Consultancy   ,Professional Fees,Services to Place,Design Frmwk Staff,"10,252.80",401020,11965
21/11/2019,ZZH670901,1,6967,Wilde Consultants Ltd,150000,Consultancy   ,Professional Fees,#N/A,#N/A,"41,000.00",401007,C.01024.202
21/11/2019,ZZH670906,1,683,AECOM Limited,150000,Consultancy   ,Professional Fees,#N/A,#N/A,"32,475.50",401007,C.00717.201
21/11/2019,ZZH670915,1,6967,Wilde Consultants Ltd,150000,Consultancy   ,Professional Fees,Services to Place,Network Assets Staff,"10,560.00",401007,11959
21/11/2019,ZZH670916,1,902,Bikeright,181800,Environmental Services Technical Equipment ,Furniture and Equipment,Services to Place,Highways-Road Safety,"21,000.00",400110,11970
21/11/2019,ZZH670919,1,7820,GMCA - GMUTC,390000,Supplies and services,Supplies and services,#N/A,#N/A,"6,000.00",401600,C.01068.202
21/11/2019,ZZH670921,1,757,Transport for Greater Manchest,390000,Supplies and services,Supplies and services,#N/A,#N/A,"52,100.00",401600,C.00718.203
22/11/2019,ZZH670934,1,12447,HEATON HOLIDAY CLUB,290000,Arts & Leisure Services  ,Publicity and Promotion,Services to People,DP -  Aiming High,"14,000.00",401801,11432
22/11/2019,ZZH670935,1,12451,SMBC HEATON SCHOOL,290000,Arts & Leisure Services  ,Publicity and Promotion,Services to People,DP -  Aiming High,"14,000.00",401801,11432
22/11/2019,ZZH670938,1,13903,WAVE TRUST LTD,261500,Human Resources Training & Conferences ,Fees and Charges,Services to People,CADA grant,"5,000.00",401024,13032
22/11/2019,ZZH670963,1,13154,Amey OW Ltd,390000,Supplies and services,Supplies and services,Services to Place,Property Client Acct,"26,220.00",401600,12328
22/11/2019,ZZH670968,1,12188,ST JOHN VIANNEY,261500,Human Resources Training & Conferences ,Fees and Charges,Services to People,SEN NMSS School Fees,"11,666.67",401024,12710
22/11/2019,ZZH670969,1,12188,ST JOHN VIANNEY,261500,Human Resources Training & Conferences ,Fees and Charges,Services to People,SEN NMSS School Fees,"11,666.67",401024,12710
22/11/2019,ZZH670970,1,12188,ST JOHN VIANNEY,261500,Human Resources Training & Conferences ,Fees and Charges,Services to People,SEN NMSS School Fees,"11,666.67",401024,12710
22/11/2019,ZZH670971,1,12188,ST JOHN VIANNEY,261500,Human Resources Training & Conferences ,Fees and Charges,Services to People,SEN NMSS School Fees,"11,666.67",401024,12710
22/11/2019,ZZH670972,1,12188,ST JOHN VIANNEY,261500,Human Resources Training & Conferences ,Fees and Charges,Services to People,SEN NMSS School Fees,"11,666.67",401024,12710
22/11/2019,ZZH670975,1,5255,BAKARE BEDS LTD,181800,Environmental Services Technical Equipment ,Furniture and Equipment,Services to People,SEN Equipment,"7,840.00",400110,10324
22/11/2019,ZZH670975,2,5255,BAKARE BEDS LTD,181800,Environmental Services Technical Equipment ,Furniture and Equipment,Services to People,SEN Equipment,380.00,400110,10324
22/11/2019,ZZH670975,3,5255,BAKARE BEDS LTD,181800,Environmental Services Technical Equipment ,Furniture and Equipment,Services to People,SEN Equipment,65.00,400110,10324
22/11/2019,ZZH670975,4,5255,BAKARE BEDS LTD,181800,Environmental Services Technical Equipment ,Furniture and Equipment,Services to People,SEN Equipment,80.00,400110,10324
25/11/2019,ZZH671009,1,12608,Liquidlogic Limited,270000,Information Communication Technology  ,Information and Communications Technology,Corporate and Support Services,IT Liquid Logic Proj,"15,150.00",402002,12958
25/11/2019,ZZH671017,1,10615,Mosaic Event Catering Limited,110000,Catering  ,Catering Supplies,Corporate and Support Services,Town Hall Events,"9,625.00",400420,11375
26/11/2019,ZZH671075,1,13551,Permanent Futures Ltd,270000,Information Communication Technology  ,Information and Communications Technology,Corporate and Support Services,IT Liquid Logic Proj,"19,250.00",402002,12958
26/11/2019,ZZH671095,1,11715,CBRE,150000,Consultancy   ,Professional Fees,Services to Place,Merseyway Shop Ctre,"3,000.00",401020,12866
26/11/2019,ZZH671095,2,11715,CBRE,150000,Consultancy   ,Professional Fees,Services to Place,Merseyway Shop Ctre,"3,000.00",401020,12866
26/11/2019,ZZH671095,3,11715,CBRE,150000,Consultancy   ,Professional Fees,Services to Place,Merseyway Shop Ctre,"3,000.00",401020,12866
26/11/2019,ZZH671095,4,11715,CBRE,150000,Consultancy   ,Professional Fees,Services to Place,Merseyway Shop Ctre,"3,000.00",401020,12866
26/11/2019,ZZH671108,1,1339,Stockport NHS Foundation Trust,320000,Social Community Care Supplies & Services  ,Care Payments,Services to People,DP - Respite,"25,620.00",530335,11513
26/11/2019,ZZH671109,1,1339,Stockport NHS Foundation Trust,320000,Social Community Care Supplies & Services  ,Care Payments,Services to People,DP - Respite,"13,712.00",530335,11513
26/11/2019,ZZH671110,1,1339,Stockport NHS Foundation Trust,320000,Social Community Care Supplies & Services  ,Care Payments,Services to People,DP - Respite,"32,910.00",530335,11513
26/11/2019,ZZH671149,1,7820,GMCA - GMUTC,390000,"Works - Construction, Repair & Maintenance  ",Capital Expenditure - Works,#N/A,#N/A,"21,451.33",200304,C.00992.203
27/11/2019,ZZH671174,1,6967,Wilde Consultants Ltd,150000,Consultancy   ,Professional Fees,Services to Place,Planning,"10,000.00",401007,12150
27/11/2019,ZZH671185,1,628,Life Leisure,290000,Arts & Leisure Services  ,Publicity and Promotion,Services to People,SC - Care Matters,"8,000.00",401801,11768
27/11/2019,ZZH671191,1,1339,Stockport NHS Foundation Trust,310000,Healthcare  ,Third party payments - Public Sector,Services to People,Partners In Practice,"27,000.00",500402,12997
27/11/2019,ZZH671203,1,683,AECOM Limited,150000,Consultancy   ,Professional Fees,#N/A,#N/A,"14,892.53",401007,C.00718.203
28/11/2019,ZZH671208,1,216,Manchester City Council,390000,Supplies and services,Supplies and services,#N/A,#N/A,"90,000.00",401600,C.00718.203
28/11/2019,ZZH671213,1,4272,Civica UK Ltd,999999,Fees and Charges,Fees and Charges,Corporate and Support Services,Income Recovery,"50,000.00",401035,12431
29/11/2019,ZZH671307,1,3529,Totally Local Company Ltd,390000,"Works - Construction, Repair & Maintenance  ",Capital Expenditure - Works,#N/A,#N/A,"11,233.66",200304,C.01020.201
29/11/2019,ZZH671308,1,6748,GEORGE COX & SONS LTD,390000,Supplies and services,Supplies and services,#N/A,#N/A,"22,250.08",401600,C.01259.203
29/11/2019,ZZH671312,1,3529,Totally Local Company Ltd,390000,"Works - Construction, Repair & Maintenance  ",Capital Expenditure - Works,#N/A,#N/A,"8,419.20",200304,C.00992.203
30/11/2019,ZZH671313,1,13445,All Pump Solutions,230000,Highway Equipment & Materials�   ,Highways Maintenance,Services to Place,A6 Marr Maintenance,"5,025.00",202050,13039
02/12/2019,ZZH671340,1,757,Transport for Greater Manchest,150000,Consultancy   ,Professional Fees,Services to Place,Local Plan Project,"4,100.00",401007,12936
02/12/2019,ZZH671340,2,757,Transport for Greater Manchest,150000,Consultancy   ,Professional Fees,Services to Place,Local Plan Project,"2,600.00",401007,12936
02/12/2019,ZZH671340,3,757,Transport for Greater Manchest,150000,Consultancy   ,Professional Fees,Services to Place,Local Plan Project,"3,100.00",401007,12936
02/12/2019,ZZH671340,4,757,Transport for Greater Manchest,150000,Consultancy   ,Professional Fees,Services to Place,Local Plan Project,"4,050.00",401007,12936
02/12/2019,ZZH671340,5,757,Transport for Greater Manchest,150000,Consultancy   ,Professional Fees,Services to Place,Local Plan Project,"2,300.00",401007,12936
02/12/2019,ZZH671340,6,757,Transport for Greater Manchest,150000,Consultancy   ,Professional Fees,Services to Place,Local Plan Project,"2,350.00",401007,12936
02/12/2019,ZZH671340,7,757,Transport for Greater Manchest,150000,Consultancy   ,Professional Fees,Services to Place,Local Plan Project,"4,700.00",401007,12936
02/12/2019,ZZH671340,8,757,Transport for Greater Manchest,150000,Consultancy   ,Professional Fees,Services to Place,Local Plan Project,"3,900.00",401007,12936
03/12/2019,ZZH671418,1,3529,Totally Local Company Ltd,390000,"Works - Construction, Repair & Maintenance  ",Capital Expenditure - Works,#N/A,#N/A,"28,650.83",200304,C.00992.203
05/12/2019,ZZH671538,1,6170,Greater Manchester TreeStation,390000,Supplies and services,Supplies and services,Services to Place,Land Proj-Chadkirk,"9,000.00",401600,11225
05/12/2019,ZZH671540,1,13860,Howard Lynn Property Ltd,390000,Supplies and services,Supplies and services,Services to Place,Property Client Acct,"6,704.68",401600,12328
05/12/2019,ZZH671550,1,4625,SAP (UK) Ltd,270000,Information Communication Technology  ,Information and Communications Technology,Corporate and Support Services,IT Systems,"68,698.60",402002,12503
05/12/2019,ZZH671570,1,4625,SAP (UK) Ltd,270000,Information Communication Technology  ,Information and Communications Technology,Corporate and Support Services,IT Systems,"68,698.60",402002,12503
09/12/2019,ZZH671644,1,4272,Civica UK Ltd,150000,Consultancy   ,Professional Fees,Corporate and Support Services,Bentax,"6,000.00",401007,11139
09/12/2019,ZZH671645,1,10337,SIGNPOST STOCKPORT for CARERS,150000,Consultancy   ,Professional Fees,Services to People,iBCF,"80,000.00",401020,13000
09/12/2019,ZZH671667,1,7025,CBRE Limited,150000,Consultancy   ,Professional Fees,Services to Place,Regen & Development,"117,534.00",401007,10098
09/12/2019,ZZH671683,1,2927,XMA Ltd,270000,Information Communication Technology  ,Information and Communications Technology,Services to People,WD-Staff Dev-Grants,"5,357.80",402001,12202
09/12/2019,ZZH671683,2,2927,XMA Ltd,270000,Information Communication Technology  ,Information and Communications Technology,Services to People,WD-Staff Dev-Grants,35.00,402001,12202
09/12/2019,ZZH671683,3,2927,XMA Ltd,270000,Information Communication Technology  ,Information and Communications Technology,Services to People,WD-Staff Dev-Grants,35.00,402001,12202
09/12/2019,ZZH671683,4,2927,XMA Ltd,270000,Information Communication Technology  ,Information and Communications Technology,Services to People,WD-Staff Dev-Grants,122.20,402001,12202
10/12/2019,ZZH671717,1,9453,Gaist Solutions Ltd,390000,"Works - Construction, Repair & Maintenance  ",Capital Expenditure - Works,#N/A,#N/A,"20,880.00",200304,C.00712.203
10/12/2019,ZZH671717,2,9453,Gaist Solutions Ltd,390000,"Works - Construction, Repair & Maintenance  ",Capital Expenditure - Works,#N/A,#N/A,"12,992.00",200304,C.00712.203
10/12/2019,ZZH671717,3,9453,Gaist Solutions Ltd,390000,"Works - Construction, Repair & Maintenance  ",Capital Expenditure - Works,#N/A,#N/A,"15,392.00",200304,C.00712.203
10/12/2019,ZZH671717,4,9453,Gaist Solutions Ltd,390000,"Works - Construction, Repair & Maintenance  ",Capital Expenditure - Works,#N/A,#N/A,750.00,200304,C.00712.203
10/12/2019,ZZH671736,1,3529,Totally Local Company Ltd,390000,"Works - Construction, Repair & Maintenance  ",Capital Expenditure - Works,#N/A,#N/A,"191,857.52",200304,C.01020.203
11/12/2019,ZZH671816,1,7802,Craemer UK Ltd,182020,Environmental Services Waste Management,Waste Management Equipment,Services to Place,Wheelie Bins,"9,628.50",400401,10864
11/12/2019,ZZH671832,1,1583,Tunstall Healthcare (UK) Ltd,210000,Furniture & Soft Furnishings  ,Furniture and Equipment,#N/A,#N/A,"3,750.00",400105,C.10004.001
11/12/2019,ZZH671832,2,1583,Tunstall Healthcare (UK) Ltd,210000,Furniture & Soft Furnishings  ,Furniture and Equipment,#N/A,#N/A,"1,873.50",400105,C.10004.001
11/12/2019,ZZH671850,1,8952,ann.smith24@nhs.net,320000,Social Community Care Supplies & Services  ,Care Payments,Services to People,PH-Healthcare,"4,098.00",530348,12735
11/12/2019,ZZH671850,2,8952,ann.smith24@nhs.net,320000,Social Community Care Supplies & Services  ,Care Payments,Services to People,PH-Lifestyles,"4,019.00",530348,12737
11/12/2019,ZZH671850,3,8952,ann.smith24@nhs.net,320000,Social Community Care Supplies & Services  ,Care Payments,Services to People,PH-Sexual Health LES,"4,656.00",530348,12748
11/12/2019,ZZH671850,4,8952,ann.smith24@nhs.net,999999,Social Community Care Supplies & Services  ,Service Contract Payments,Services to People,PH-Sexual Health LES,"3,399.00",561704,12748
11/12/2019,ZZH671851,1,8956,P88005 The Family Surgery,320000,Social Community Care Supplies & Services  ,Care Payments,Services to People,PH-Healthcare,"3,267.00",530348,12735
11/12/2019,ZZH671851,2,8956,P88005 The Family Surgery,320000,Social Community Care Supplies & Services  ,Care Payments,Services to People,PH-Lifestyles,"4,608.00",530348,12737
12/12/2019,ZZH671902,1,3789,"P88043 Brinnington Surgery, Br",320000,Social Community Care Supplies & Services  ,Care Payments,Services to People,PH-Healthcare,"2,066.00",530348,12735
12/12/2019,ZZH671902,2,3789,"P88043 Brinnington Surgery, Br",320000,Social Community Care Supplies & Services  ,Care Payments,Services to People,PH-Lifestyles,"4,931.00",530348,12737
12/12/2019,ZZH671902,3,3789,"P88043 Brinnington Surgery, Br",999999,Social Community Care Supplies & Services  ,Service Contract Payments,Services to People,PH-Sexual Health LES,"8,265.00",561704,12748
12/12/2019,ZZH671902,4,3789,"P88043 Brinnington Surgery, Br",320000,Social Community Care Supplies & Services  ,Care Payments,Services to People,PH-Sexual Health LES,"5,286.00",530348,12748
12/12/2019,ZZH671905,1,8957,P88632 Stockport Medical Group,320000,Social Community Care Supplies & Services  ,Care Payments,Services to People,PH-Healthcare,"2,103.00",530348,12735
12/12/2019,ZZH671905,2,8957,P88632 Stockport Medical Group,320000,Social Community Care Supplies & Services  ,Care Payments,Services to People,PH-Lifestyles,"2,819.50",530348,12737
12/12/2019,ZZH671905,3,8957,P88632 Stockport Medical Group,999999,Social Community Care Supplies & Services  ,Service Contract Payments,Services to People,PH-Sexual Health LES,"3,888.00",561704,12748
12/12/2019,ZZH671905,4,8957,P88632 Stockport Medical Group,320000,Social Community Care Supplies & Services  ,Care Payments,Services to People,PH-Sexual Health LES,"3,935.50",530348,12748
12/12/2019,ZZH671909,1,1799,Stockport Homes,150000,Consultancy   ,Professional Fees,Services to People,SCDIP,"8,505.55",401020,12978
13/12/2019,ZZH671963,1,1222,Horticon Ltd,240000,Horticultural  ,Grounds Maintenance,#N/A,#N/A,"43,006.52",202032,C.10775
13/12/2019,ZZH671985,1,7025,CBRE Limited,150000,Consultancy   ,Professional Fees,Services to Place,Merseyway Shop Ctre,"19,250.00",401020,12866
16/12/2019,ZZH671993,1,10499,Gravitas Recruitment Group Lim,999999,UNCLASSIFIED  ,MISCLASSIFIED? CHECK BEFORE PUBLICATION,Corporate and Support Services,IT Liquid Logic Proj,"35,250.00",100100,12958
16/12/2019,ZZH672000,1,6748,GEORGE COX & SONS LTD,390000,Supplies and services,Supplies and services,#N/A,#N/A,"17,787.10",401600,C.01263.203
16/12/2019,ZZH672004,1,6748,GEORGE COX & SONS LTD,390000,Supplies and services,Supplies and services,#N/A,#N/A,"28,625.80",401600,C.01261.203
16/12/2019,ZZH672023,1,7025,CBRE Limited,150000,Consultancy   ,Professional Fees,Services to Place,Town Centre Devt Tea,"15,000.00",401007,10072
17/12/2019,ZZH672132,1,11932,THOMSON REUTERS LTD,171113,Education Library Books ,Library Equipment,Corporate and Support Services,Legal Services,"29,906.50",400202,11117
18/12/2019,ZZH672139,1,833,Egbert Taylor Ltd,182020,Environmental Services Waste Management,Waste Management Equipment,Services to Place,Bulk Container,"3,800.00",400401,10883
18/12/2019,ZZH672139,2,833,Egbert Taylor Ltd,182020,Environmental Services Waste Management,Waste Management Equipment,Services to Place,Bulk Container,"3,150.00",400401,10883
18/12/2019,ZZH672139,3,833,Egbert Taylor Ltd,182020,Environmental Services Waste Management,Waste Management Equipment,Services to Place,Bulk Container,"3,150.00",400401,10883
18/12/2019,ZZH672140,1,10855,Bloom Procurement Services,150000,Consultancy   ,Professional Fees,Services to Place,Operational Support,"47,145.00",401007,10924
18/12/2019,ZZH672149,1,1339,Stockport NHS Foundation Trust,310000,Healthcare  ,Third party payments - Public Sector,Services to People,Scale & Spread - NWD,"36,620.00",500402,13029
18/12/2019,ZZH672176,1,3726,BILD,260000,Human Resources  ,Staff Training,Services to People,SG - Child Prot-Lscb,"6,470.00",102020,11424
19/12/2019,ZZH672195,1,10855,Bloom Procurement Services,150000,Consultancy   ,Professional Fees,Services to Place,Economic Development,"14,880.00",401007,10103
19/12/2019,ZZH672197,1,11715,CBRE,150000,Consultancy   ,Professional Fees,Services to Place,Merseyway Shop Ctre,"40,280.00",401020,12866
19/12/2019,ZZH672197,2,11715,CBRE,150000,Consultancy   ,Professional Fees,Services to Place,Merseyway Shop Ctre,"6,360.00",401020,12866
19/12/2019,ZZH672218,1,7670,Wilds Of Oldham,110000,Catering  ,Expenses and Allowances,Corporate and Support Services,Town Hall Events,"5,000.00",402202,11375
19/12/2019,ZZH672241,1,628,Life Leisure,150000,Consultancy   ,Professional Fees,Services to People,SS-SSCO Partnership,"5,270.76",401020,10716
20/12/2019,ZZH672252,1,4272,Civica UK Ltd,270000,Information Communication Technology  ,Information and Communications Technology,Corporate and Support Services,Electoral Registn,"11,500.00",402001,11102
20/12/2019,ZZH672260,1,4752,Barnsley MBC,999999,Fees and Charges,Fees and Charges,Services to Place,Policy-Rights Of Way,"8,500.00",401036,10088
20/12/2019,ZZH672277,1,6170,Greater Manchester TreeStation,240000,Horticultural  ,Grounds Maintenance,Services to Place,Special Project 8,"133,000.00",202031,11274
20/12/2019,ZZH672296,1,2484,Pennine Playgrounds Ltd,240000,Horticultural  ,Grounds Maintenance,#N/A,#N/A,"43,317.41",202032,C.10775
20/12/2019,ZZH672306,1,9441,Softcat Ltd,270000,Information Communication Technology  ,Information and Communications Technology,Corporate and Support Services,IT Infrastructure,"93,951.56",402001,11324
20/12/2019,ZZH672313,1,6748,GEORGE COX & SONS LTD,390000,Supplies and services,Supplies and services,#N/A,#N/A,"216,576.53",401600,C.00992.203
20/12/2019,ZZH672316,1,82,Marwood Electrical Company Ltd,390000,"Works - Construction, Repair & Maintenance  ",Capital Expenditure - Works,#N/A,#N/A,"3,822.35",200304,C.01219.203
20/12/2019,ZZH672316,2,82,Marwood Electrical Company Ltd,390000,"Works - Construction, Repair & Maintenance  ",Capital Expenditure - Works,#N/A,#N/A,"5,351.29",200304,C.01219.203
20/12/2019,ZZH672318,1,9315,Carillion Morgan Sindall JV,390000,Supplies and services,Supplies and services,#N/A,#N/A,"80,042.77",401600,C.00880.203
21/12/2019,ZZH672331,1,683,AECOM Limited,150000,Consultancy   ,Professional Fees,#N/A,#N/A,"18,138.00",401007,C.00717.201
23/12/2019,ZZH672354,1,10615,Mosaic Event Catering Limited,110000,Catering  ,Catering Supplies,Corporate and Support Services,Town Hall Events,"3,751.45",400420,11375
23/12/2019,ZZH672354,2,10615,Mosaic Event Catering Limited,110000,Catering  ,Catering Supplies,Corporate and Support Services,Town Hall Events,"4,286.85",400420,11375
23/12/2019,ZZH672376,1,6803,Bibliotheca Ltd,270000,Information Communication Technology  ,Information and Communications Technology,Corporate and Support Services,Public Libraries Gen,"13,625.00",402001,11329
23/12/2019,ZZH672377,1,6803,Bibliotheca Ltd,270000,Information Communication Technology  ,Information and Communications Technology,Corporate and Support Services,Public Libraries Gen,"13,445.00",402001,11329
23/12/2019,ZZH672378,1,6803,Bibliotheca Ltd,270000,Information Communication Technology  ,Information and Communications Technology,Corporate and Support Services,Public Libraries Gen,"14,390.00",402001,11329
23/12/2019,ZZH672381,1,757,Transport for Greater Manchest,390000,Supplies and services,Supplies and services,#N/A,#N/A,"57,500.00",401600,C.00718.203
23/12/2019,ZZH672386,1,8475,Link Treasury Services Limited,999999,UNCLASSIFIED  ,MISCLASSIFIED? CHECK BEFORE PUBLICATION,Corporate and Support Services (Tech),TM Interest Payable,"60,100.00",601401,10969
24/12/2019,ZZH672405,1,2746,Local Government Info Unit,171113,Education Library Books ,Library Equipment,Corporate and Support Services,AGMA & LA Subs,"13,700.00",400206,10979
24/12/2019,ZZH672406,1,446,Local Government Association,171113,Education Library Books ,Library Equipment,Corporate and Support Services,AGMA & LA Subs,"47,013.00",400206,10979
27/12/2019,ZZH672429,1,2927,XMA Ltd,181800,Environmental Services Technical Equipment ,Furniture and Equipment,Corporate and Support Services,IT School,"5,944.57",400110,11418
30/12/2019,ZZH672433,1,4272,Civica UK Ltd,270000,Information Communication Technology  ,Information and Communications Technology,Corporate and Support Services,Legal Services,"37,370.10",402001,11117
01/10/2019,ZZP668352,1,10780,Permicoat Ltd,390000,"Works - Construction, Repair & Maintenance  ",Repairs and Maintenance,#N/A,#N/A,"11,093.00",200127,C.11502.106
09/10/2019,ZZP668810,1,2522,Donald Insall Associates,390000,"Works - Construction, Repair & Maintenance  ",Repairs and Maintenance,#N/A,#N/A,"57,057.25",200123,C.10904.006
11/10/2019,ZZP668953,1,12902,ECS Consultants Limited,150000,Consultancy   ,Professional Fees,#N/A,#N/A,"25,482.00",401020,C.10408.110
17/10/2019,ZZP669250,1,2479,JR Foy and Son Ltd,390000,"Works - Construction, Repair & Maintenance  ",Capital Expenditure - Works,#N/A,#N/A,"14,200.00",200301,C.10875
18/10/2019,ZZP669307,1,12653,DAC Beachcroft LLP,390000,"Works - Construction, Repair & Maintenance  ",Repairs and Maintenance,#N/A,#N/A,"1,045.80",200123,C.10291.184
18/10/2019,ZZP669307,1,12653,DAC Beachcroft LLP,390000,"Works - Construction, Repair & Maintenance  ",Repairs and Maintenance,#N/A,#N/A,"1,045.80",200123,C.10335.118
18/10/2019,ZZP669307,1,12653,DAC Beachcroft LLP,390000,"Works - Construction, Repair & Maintenance  ",Repairs and Maintenance,#N/A,#N/A,"1,045.80",200123,C.10408.109
18/10/2019,ZZP669307,1,12653,DAC Beachcroft LLP,390000,"Works - Construction, Repair & Maintenance  ",Repairs and Maintenance,#N/A,#N/A,"1,045.80",200123,C.10408.110
18/10/2019,ZZP669307,1,12653,DAC Beachcroft LLP,390000,"Works - Construction, Repair & Maintenance  ",Repairs and Maintenance,#N/A,#N/A,"1,045.80",200123,C.10423.184
18/10/2019,ZZP669307,1,12653,DAC Beachcroft LLP,390000,"Works - Construction, Repair & Maintenance  ",Repairs and Maintenance,#N/A,#N/A,"1,071.00",200123,C.10382.122
18/10/2019,ZZP669307,1,12653,DAC Beachcroft LLP,390000,"Works - Construction, Repair & Maintenance  ",Repairs and Maintenance,#N/A,#N/A,"1,575.00",200123,C.11507.001
18/10/2019,ZZP669307,1,12653,DAC Beachcroft LLP,390000,"Works - Construction, Repair & Maintenance  ",Repairs and Maintenance,#N/A,#N/A,"1,575.00",200123,C.11507.003
18/10/2019,ZZP669307,1,12653,DAC Beachcroft LLP,390000,"Works - Construction, Repair & Maintenance  ",Repairs and Maintenance,#N/A,#N/A,"1,575.00",200123,C.11507.005
18/10/2019,ZZP669307,1,12653,DAC Beachcroft LLP,390000,"Works - Construction, Repair & Maintenance  ",Repairs and Maintenance,#N/A,#N/A,"1,575.00",200123,C.11507.008
01/11/2019,ZZP669889,1,12902,ECS Consultants Limited,390000,"Works - Construction, Repair & Maintenance  ",Repairs and Maintenance,#N/A,#N/A,"18,260.00",200123,C.11508.001
01/11/2019,ZZP669889,2,12902,ECS Consultants Limited,390000,"Works - Construction, Repair & Maintenance  ",Repairs and Maintenance,#N/A,#N/A,"20,755.00",200123,C.11508.007
01/11/2019,ZZP669889,3,12902,ECS Consultants Limited,390000,"Works - Construction, Repair & Maintenance  ",Repairs and Maintenance,#N/A,#N/A,"27,350.00",200123,C.11506
01/11/2019,ZZP669889,4,12902,ECS Consultants Limited,390000,"Works - Construction, Repair & Maintenance  ",Repairs and Maintenance,#N/A,#N/A,"7,900.00",200123,C.11508.006
01/11/2019,ZZP669891,1,13005,AHR BUILDING CONSULTANCY LTD,390000,"Works - Construction, Repair & Maintenance  ",Repairs and Maintenance,#N/A,#N/A,"18,260.00",200123,C.11508.001
01/11/2019,ZZP669891,2,13005,AHR BUILDING CONSULTANCY LTD,390000,"Works - Construction, Repair & Maintenance  ",Repairs and Maintenance,#N/A,#N/A,"20,755.00",200123,C.11508.007
01/11/2019,ZZP669891,3,13005,AHR BUILDING CONSULTANCY LTD,390000,"Works - Construction, Repair & Maintenance  ",Repairs and Maintenance,#N/A,#N/A,"27,350.00",200123,C.11506
01/11/2019,ZZP669891,4,13005,AHR BUILDING CONSULTANCY LTD,390000,"Works - Construction, Repair & Maintenance  ",Repairs and Maintenance,#N/A,#N/A,"7,900.00",200123,C.11508.006
04/11/2019,ZZP669949,1,13862,David Trowler Associates,390000,"Works - Construction, Repair & Maintenance  ",Repairs and Maintenance,#N/A,#N/A,"25,755.00",200123,C.10408.109
06/11/2019,ZZP670131,1,2479,JR Foy and Son Ltd,390000,"Works - Construction, Repair & Maintenance  ",Repairs and Maintenance,Services to People,SHV CSC Locality Lea,"54,000.00",200123,11514
06/11/2019,ZZP670137,1,10585,Art and Antiques Appraisals,150000,Consultancy   ,Professional Fees,Services to Place,Curatorial Support,"5,000.00",401020,11349
06/11/2019,ZZP670143,1,628,Life Leisure,390000,"Works - Construction, Repair & Maintenance  ",Repairs and Maintenance,#N/A,#N/A,"5,056.20",200123,C.11507.003
13/11/2019,ZZP670473,1,13600,Total Leisure Engineering Ltd,390000,"Works - Construction, Repair & Maintenance  ",Capital Expenditure - Works,#N/A,#N/A,"55,745.00",200311,C.11506
21/11/2019,ZZP670838,1,13099,ROBERTSON FACILITIES MANAGEMEN,390000,"Works - Construction, Repair & Maintenance  ",Repairs and Maintenance,Services to People,Condition Surveys,"49,516.00",200123,10734
21/11/2019,ZZP670849,1,13099,ROBERTSON FACILITIES MANAGEMEN,390000,"Works - Construction, Repair & Maintenance  ",Repairs and Maintenance,#N/A,#N/A,"5,164.00",200123,C.11508.001
21/11/2019,ZZP670849,2,13099,ROBERTSON FACILITIES MANAGEMEN,390000,"Works - Construction, Repair & Maintenance  ",Repairs and Maintenance,#N/A,#N/A,"3,836.00",200123,C.11508.002
21/11/2019,ZZP670849,3,13099,ROBERTSON FACILITIES MANAGEMEN,390000,"Works - Construction, Repair & Maintenance  ",Repairs and Maintenance,#N/A,#N/A,"4,750.00",200123,C.11508.003
21/11/2019,ZZP670849,4,13099,ROBERTSON FACILITIES MANAGEMEN,390000,"Works - Construction, Repair & Maintenance  ",Repairs and Maintenance,#N/A,#N/A,"9,600.00",200123,C.11506
21/11/2019,ZZP670849,5,13099,ROBERTSON FACILITIES MANAGEMEN,390000,"Works - Construction, Repair & Maintenance  ",Repairs and Maintenance,#N/A,#N/A,"4,860.00",200123,C.11508.004
21/11/2019,ZZP670849,6,13099,ROBERTSON FACILITIES MANAGEMEN,390000,"Works - Construction, Repair & Maintenance  ",Repairs and Maintenance,#N/A,#N/A,"4,123.00",200123,C.11508.006
21/11/2019,ZZP670849,7,13099,ROBERTSON FACILITIES MANAGEMEN,390000,"Works - Construction, Repair & Maintenance  ",Repairs and Maintenance,#N/A,#N/A,"4,089.00",200123,C.11508.007
21/11/2019,ZZP670875,1,187,MCC Ltd,181800,Environmental Services Technical Equipment ,Furniture and Equipment,Services to Place,Operational Support,"12,500.00",400110,10924
22/11/2019,ZZP670958,1,7889,Thomas Kershaw Builders,390000,"Works - Construction, Repair & Maintenance  ",Repairs and Maintenance,#N/A,#N/A,"58,006.00",200123,C.11504.013
26/11/2019,ZZP671081,1,12902,ECS Consultants Limited,390000,"Works - Construction, Repair & Maintenance  ",Repairs and Maintenance,#N/A,#N/A,"8,130.00",200123,C.10408.110
26/11/2019,ZZP671082,1,13862,David Trowler Associates,390000,"Works - Construction, Repair & Maintenance  ",Repairs and Maintenance,#N/A,#N/A,"17,950.00",200123,C.10408.109
26/11/2019,ZZP671083,1,12902,ECS Consultants Limited,390000,"Works - Construction, Repair & Maintenance  ",Repairs and Maintenance,#N/A,#N/A,"18,550.00",200123,C.10408.110
02/12/2019,ZZP671404,1,4708,The Dodd Group,390000,"Works - Construction, Repair & Maintenance  ",Repairs and Maintenance,#N/A,#N/A,"12,326.30",200123,C.11508.004
03/12/2019,ZZP671414,1,11715,CBRE,390000,"Works - Construction, Repair & Maintenance  ",Repairs and Maintenance,Services to Place,Property Client Acct,"15,000.00",200123,12328
04/12/2019,ZZP671513,1,2473,Bowker Sadler Ltd,390000,"Works - Construction, Repair & Maintenance  ",Repairs and Maintenance,#N/A,#N/A,"5,250.00",200123,C.10382.122
04/12/2019,ZZP671514,1,13952,SDA CONSULTING LLP,390000,"Works - Construction, Repair & Maintenance  ",Repairs and Maintenance,#N/A,#N/A,"19,930.00",200123,C.10291.184
04/12/2019,ZZP671515,1,2473,Bowker Sadler Ltd,390000,"Works - Construction, Repair & Maintenance  ",Repairs and Maintenance,#N/A,#N/A,"32,620.00",200123,C.10291.184
20/12/2019,ZZP672273,1,2438,J Greenwood (Builders) Ltd,390000,"Works - Construction, Repair & Maintenance  ",Repairs and Maintenance,#N/A,#N/A,"9,740.00",200123,C.11502.120
20/12/2019,ZZP672319,1,2438,J Greenwood (Builders) Ltd,390000,"Works - Construction, Repair & Maintenance  ",Repairs and Maintenance,#N/A,#N/A,"5,387.00",200123,C.00718.203
14/10/2019,ZZS669016,1,12978,Mills & Reeve LLP (office acco,280000,Legal Services  ,Legal Fees,Corporate and Support Services,Legal Fees Budget,"5,000.00",401016,12271
12/11/2019,ZZS670412,1,12814,ALFRED NEWTON & CO,280000,Legal Services  ,Legal Fees,Corporate and Support Services,Legal Fees Budget,"5,352.26",401016,12271
19/11/2019,ZZS670744,1,10203,PINSENT MASONS LLP,280000,Legal Services  ,Legal Fees,#N/A,#N/A,"5,000.00",401016,C.10933
